bitfinex/quotes_ETHUSD_20251009
["timestamp","ask_amount","ask_price","bid_price","bid_amount"]
[1760020013395,0.0012,4354.9,4353.1,2.52099647]
[1760020013598,0.0012,4354.9,4354.2,0.445]
[1760020013888,0.0012,4354.9,4354.3,2.29657533]
[1760020014208,0.0012,4354.9,4354.2,0.445]
[1760020014209,0.0012,4354.9,4354.8,2.2963167]
[1760020014396,0.0012,4354.9,4354.8,4.70827986]
[1760020014596,0.0012,4354.9,4354.8,4.6853167]
[1760020014791,0.0012,4354.9,4354.8,5.1303167]
[1760020016392,0.0012,4354.9,4354.8,2.834]
[1760020016594,0.0012,4354.9,4354.3,0.445]
[1760020016806,0.0012,4354.9,4354.5,0.445]
[1760020017006,2.29635873,4354.8,4353.7,1.92]
[1760020017240,0.0012,4354.9,4353.9,1.92]
[1760020017434,0.0012,4354.9,4353.6,2.74194704]
[1760020017748,2.4107185,4354.8,4354.1,0.1144]
[1760020017939,2.29644778,4354.6,4354.1,0.1144]
[1760020018122,2.29637451,4354.7,4354.2,9.171]
[1760020018296,0.1144,4354.8,4354.2,9.171]
[1760020018492,0.1144,4354.8,4354.3,0.0229658]
[1760020018748,0.1144,4354.8,4354.4,0.4648]
[1760020019163,0.1144,4354.8,4354.3,0.0229658]
[1760020019402,2.29638472,4354.7,4354.3,0.0229658]
[1760020019701,0.1144,4354.8,4354.3,0.0229658]
[1760020019857,0.1144,4354.8,4354.4,0.4648]
[1760020020057,0.1144,4354.8,4354.5,6.80396474]
[1760020020259,0.1144,4354.8,4354.6,0.02296422]
[1760020020786,0.1144,4354.8,4354.5,6.781]
[1760020020787,2.29637819,4354.7,4354.5,6.781]
[1760020020957,0.1144,4354.8,4354.1,0.1144]
[1760020021368,0.1144,4354.1,4353.4,0.1144]
[1760020021556,0.1144,4354.1,4353.5,2.705]
[1760020021557,2.41108975,4354.1,4353.5,2.705]
[1760020021798,2.41108975,4354.1,4353.4,0.1144]
[1760020021799,2.4110919,4354.1,4353.4,0.1144]
[1760020021999,0.1014,4354.3,4353.5,0.1]
[1760020022205,0.1144,4353.7,4353.1,0.001]
[1760020022507,0.1144,4353.7,4353.2,3.316]
[1760020023524,0.1144,4353.7,4353.3,0.48777107]
[1760020024026,0.1144,4353.7,4353.3,2.78487491]
[1760020024178,0.1144,4353.7,4353.3,0.02297107]
[1760020024379,0.1144,4353.7,4353.1,0.001]
[1760020024607,0.1144,4353.7,4353.2,3.085]
[1760020024808,0.1136,4353.7,4353.3,0.02297107]
[1760020025126,0.1136,4353.7,4353.4,0.4648]
[1760020025335,0.1144,4354.1,4353.5,0.4648]
[1760020025503,0.1144,4354.1,4353.6,2.29694965]
[1760020025705,0.1144,4354.1,4353.7,0.4648]
[1760020025909,0.1144,4354.1,4353.8,7.19759761]
[1760020026106,0.1144,4354.1,4353.4,0.1144]
[1760020026314,0.1144,4354.1,4353.9,6.78]
[1760020026595,0.58516042,4354.1,4353.4,0.1144]
[1760020026813,0.1144,4353.7,4353.5,6.701]
[1760020027199,0.1144,4353.7,4353.5,7.1658]
[1760020027400,0.1144,4353.7,4353.5,6.701]
[1760020027598,0.1144,4353.7,4353.1,0.4658]
[1760020027599,0.1144,4353.7,4353.6,9.167]
[1760020027937,0.1144,4353.7,4353.6,6.779]
[1760020028890,1.9212,4354.9,4353.6,7.2438]
[1760020029104,1.9212,4354.9,4353.6,8.55108985]
[1760020029105,0.1144,4354.5,4353.6,8.55108985]
[1760020029313,2.41091484,4354.5,4353.7,9.167]
[1760020029531,0.1144,4354.5,4353.8,2.29684413]
[1760020029691,0.1144,4354.5,4353.9,0.02296791]
[1760020029888,0.1144,4354.5,4353.7,9.167]
[1760020030128,0.1144,4354.5,4353.8,2.29679937]
[1760020030310,0.1144,4354.5,4353.9,0.02296791]
[1760020030492,0.1144,4354.5,4353.9,2.319751]
[1760020031330,0.1144,4354.5,4353.9,0.02296791]
[1760020031543,0.1144,4354.8,4354.0,0.5792]
[1760020031720,0.1144,4354.8,4354.7,2.29636943]
[1760020031925,0.0012,4354.9,4354.7,2.29636943]
[1760020031926,0.0012,4354.9,4354.7,9.6308]
[1760020032231,0.0012,4354.9,4354.8,2.78407986]
[1760020032930,0.0012,4354.9,4354.8,12.33907986]
[1760020033097,0.0012,4354.9,4354.8,14.56788715]
[1760020033526,0.0012,4354.9,4354.8,12.27157045]
[1760020033697,0.0012,4354.9,4354.8,2.71657045]
[1760020033898,0.0012,4354.9,4353.6,2.29692467]
[1760020033899,0.0012,4354.9,4354.4,0.4648]
[1760020034126,0.0012,4354.9,4354.5,2.29642911]
[1760020034326,0.0012,4354.9,4354.6,8.15941314]
[1760020034530,0.0012,4354.9,4354.8,2.2963167]
[1760020034733,0.0012,4354.9,4354.7,0.4648]
[1760020034916,0.0012,4354.9,4354.8,2.2963167]
[1760020035328,0.0012,4354.9,4354.8,2.7611167]
[1760020035911,0.0012,4354.9,4354.8,0.4648]
[1760020036118,0.0012,4354.9,4354.8,11.9261167]
[1760020036429,0.0012,4354.9,4354.8,0.4648]
[1760020036608,0.0012,4354.9,4354.8,9.6298]
[1760020036803,0.0012,4354.9,4354.8,11.9261167]
[1760020037903,0.0012,4354.9,4354.8,9.165]
[1760020038318,0.0012,4354.9,4354.8,11.9261167]
[1760020039430,0.0012,4354.9,4354.8,9.6298]
[1760020039942,0.0012,4354.9,4354.3,0.4648]
[1760020040102,0.0012,4354.9,4354.8,2.388]
[1760020040438,0.0012,4354.9,4353.6,0.4648]
[1760020040727,2.2964955,4354.5,4353.7,2.792]
[1760020040933,2.29658369,4354.3,4353.7,2.792]
[1760020041135,0.1002,4354.8,4353.7,2.792]
[1760020041337,2.29663699,4354.2,4353.7,2.792]
[1760020041639,2.29648892,4354.5,4353.8,2.3197742]
[1760020041848,2.29653486,4354.4,4353.8,0.48776844]
[1760020042157,0.0012,4354.9,4353.8,0.48776844]
[1760020042314,0.0012,4354.9,4353.8,0.81574528]
[1760020042646,0.1156,4354.9,4354.3,2.29658039]
[1760020042946,0.1156,4354.9,4354.2,0.1144]
[1760020043243,2.29662094,4354.3,4354.0,2.388]
[1760020043449,0.1144,4354.4,4354.1,0.88396685]
[1760020043612,0.0012,4354.9,4354.4,2.29648411]
[1760020043813,0.0012,4354.9,4354.5,0.02296474]
[1760020044014,0.0012,4354.9,4354.6,6.774]
[1760020044233,2.2963555,4354.8,4354.6,6.774]
[1760020044447,0.0012,4354.9,4354.6,6.774]
[1760020044625,0.0012,4354.9,4354.7,2.78411751]
[1760020045015,0.0012,4354.9,4354.8,0.4648]
[1760020045848,0.0012,4354.9,4354.6,6.774]
[1760020046050,0.0012,4354.9,4353.3,1.921]
[1760020046051,0.0012,4354.9,4354.2,0.4648]
[1760020046221,0.0012,4354.9,4354.3,9.162]
[1760020046415,0.0012,4354.9,4353.9,0.4648]
[1760020046612,2.29748238,4354.9,4353.9,0.4648]
[1760020046949,2.29748238,4354.9,4354.2,2.29662105]
[1760020047151,0.0012,4354.9,4353.9,0.4648]
[1760020047352,2.2963167,4354.8,4354.3,6.773]
[1760020047550,2.2963167,4354.8,4354.0,2.29673819]
[1760020047551,2.29635868,4354.8,4354.0,2.29673819]
[1760020047866,2.29635868,4354.8,4354.4,6.773]
[1760020048043,0.0012,4354.9,4353.3,0.4571]
[1760020048219,0.0012,4354.9,4353.3,2.389]
[1760020048220,2.29673002,4354.1,4353.3,2.389]
[1760020048418,2.29688887,4353.8,4353.3,0.001]
[1760020048635,0.6336,4354.6,4353.4,3.494]
[1760020048848,2.29680733,4353.9,4353.5,0.02297002]
[1760020049049,0.45423784,4354.6,4353.5,0.02297002]
[1760020049275,2.29658547,4354.3,4353.6,2.75299731]
[1760020049480,2.29658547,4354.3,4353.7,0.02296896]
[1760020049867,2.29652872,4354.4,4353.7,0.02296896]
[1760020050071,2.29653976,4354.4,4353.7,2.29685607]
[1760020050269,2.29649414,4354.5,4353.7,2.29685607]
[1760020050472,1.9212,4354.9,4353.6,2.75303647]
[1760020050672,2.29663354,4354.2,4353.6,0.4561]
[1760020050884,2.29658848,4354.3,4353.6,0.4561]
[1760020051087,0.6336,4354.8,4353.3,0.001]
[1760020051391,2.29704848,4353.5,4353.3,0.001]
[1760020051584,2.93023313,4354.2,4353.3,0.001]
[1760020051896,2.29703403,4353.5,4353.3,0.001]
[1760020052690,0.29302331,4354.1,4353.3,0.001]
[1760020052851,1.92,4354.5,4353.3,0.4571]
[1760020053182,2.2968853,4353.8,4353.3,0.4571]
[1760020053380,0.54955972,4354.6,4353.4,0.4561]
[1760020053573,0.1144,4353.9,4353.4,0.4561]
[1760020054383,0.1144,4353.9,4353.3,0.001]
[1760020054384,2.4111919,4353.9,4353.3,0.001]
[1760020054560,0.45055972,4354.6,4353.5,2.75308912]
[1760020054762,0.1144,4354.6,4354.2,2.29663089]
[1760020055069,0.1144,4354.6,4354.1,3.332]
[1760020055277,2.29647491,4354.5,4354.1,3.332]
[1760020055475,0.1144,4354.6,4354.1,3.332]
[1760020055661,0.1144,4354.6,4354.2,0.47906633]
[1760020055982,0.1144,4354.6,4354.3,0.4561]
[1760020056150,0.1144,4354.6,4354.1,3.332]
[1760020056350,2.29648483,4354.5,4354.1,3.332]
[1760020056550,2.29648483,4354.5,4353.9,0.1144]
[1760020056551,2.29653948,4354.4,4353.9,0.1144]
[1760020056762,2.29653948,4354.4,4354.0,5.862]
[1760020056956,0.1144,4354.6,4354.0,5.862]
[1760020056957,2.29647951,4354.5,4354.0,5.862]
[1760020057175,0.1144,4354.6,4354.1,0.4561]
[1760020057391,0.0012,4354.9,4354.3,2.29654227]
[1760020057392,0.002,4354.8,4354.3,2.29654227]
[1760020057590,0.002,4354.8,4354.4,0.47906527]
[1760020057906,0.002,4354.8,4354.7,2.29636943]
[1760020058100,0.002,4354.8,4354.7,9.06736943]
[1760020058264,0.002,4354.8,4354.7,9.52346943]
[1760020058789,0.002,4354.8,4354.7,10.47581637]
[1760020059189,0.002,4354.8,4354.7,8.17944694]
[1760020059397,0.002,4354.8,4353.1,0.001]
[1760020059604,2.29664451,4354.2,4353.4,2.29705517]
[1760020059904,0.6336,4354.2,4353.1,0.001]
[1760020060064,0.6336,4354.3,4353.1,0.001]
[1760020060428,2.29705517,4353.4,4353.1,0.001]
[1760020060875,3.48985228,4353.4,4353.1,0.001]
[1760020061207,17.34917254,4353.4,4353.1,0.001]
[1760020062465,17.34917254,4353.4,4352.7,0.001]
[1760020062466,4.8509718,4352.8,4352.7,0.001]
[1760020062693,25.83212866,4352.8,4352.7,0.001]
[1760020063012,26.74095579,4352.8,4352.7,0.001]
[1760020064375,17.58295579,4352.8,4352.7,0.001]
[1760020064701,26.74195579,4352.8,4352.7,0.001]
[1760020065709,17.58295579,4352.8,4352.7,0.001]
[1760020065891,26.74195579,4352.8,4352.7,0.001]
[1760020066718,26.74195579,4352.8,4351.3,0.001]
[1760020066719,2.29811095,4351.4,4351.3,0.001]
[1760020068035,9.62740806,4351.4,4351.3,0.001]
[1760020068699,10.26100806,4351.4,4351.3,0.001]
[1760020069255,12.18100806,4351.4,4351.3,0.001]
[1760020069739,0.6336,4351.2,4350.8,0.001]
[1760020069922,16.6751319,4350.9,4350.8,0.001]
[1760020070134,17.48415903,4350.9,4350.8,0.001]
[1760020070431,17.48415903,4350.9,4348.0,3.0796]
[1760020070432,0.6336,4348.9,4347.5,0.4718]
[1760020070757,2.29974316,4348.4,4347.5,2.77196683]
[1760020070947,6.7692,4348.8,4347.5,0.4718]
[1760020071116,2.29992757,4348.0,4347.6,0.27720062]
[1760020071320,2.29976664,4348.3,4347.4,2.30017277]
[1760020071518,2.29976664,4348.3,4347.2,0.2257]
[1760020071519,2.29975867,4348.3,4347.2,2.52597918]
[1760020071720,2.2998112,4348.2,4347.3,2.30027833]
[1760020071999,2.29975672,4348.3,4347.4,2.30022086]
[1760020072213,0.11414242,4348.4,4345.8,0.69054653]
[1760020072214,6.77,4348.5,4346.9,2.30049]
[1760020072436,2.29986159,4348.1,4347.0,2.172619]
[1760020072627,6.88330962,4348.5,4347.0,2.172619]
[1760020073143,6.77,4348.5,4347.0,2.172619]
[1760020073463,0.6336,4349.0,4347.0,2.172619]
[1760020073464,0.45096051,4349.0,4347.2,4.22033124]
[1760020073758,1.92,4349.2,4347.9,2.29991855]
[1760020073759,2.93308996,4348.8,4347.9,2.29991855]
[1760020073911,0.6336,4348.8,4347.9,2.29991855]
[1760020074111,2.93312849,4348.8,4347.9,0.0229996]
[1760020074350,2.39,4349.3,4347.9,0.0229996]
[1760020074351,0.46329686,4349.3,4347.9,0.0229996]
[1760020074556,7.4046,4349.2,4348.0,0.4718]
[1760020074765,2.29939618,4349.0,4348.1,2.32285101]
[1760020075052,7.4046,4349.2,4346.8,2.52623232]
[1760020075240,2.29948484,4348.9,4347.4,0.4718]
[1760020075414,0.6336,4349.4,4347.5,2.30017251]
[1760020075638,1.92,4349.2,4347.6,0.4718]
[1760020075840,4.21928033,4349.2,4348.3,2.29974458]
[1760020076182,1.92,4349.2,4347.7,0.27719725]
[1760020076336,0.6336,4349.1,4347.6,0.4718]
[1760020076540,0.6336,4349.1,4347.6,5.4188]
[1760020076754,2.29959768,4348.6,4347.6,7.7188932]
[1760020076951,2.29959768,4348.6,4347.7,2.30004142]
[1760020077156,0.6336,4349.1,4347.6,5.4188]
[1760020077360,2.29948914,4348.8,4348.0,2.2999065]
[1760020077566,2.29948914,4348.8,4347.9,2.29992003]
[1760020077774,2.29954075,4348.7,4347.9,2.29992003]
[1760020077935,2.29949288,4348.8,4347.7,0.54188]
[1760020078283,1.09299711,4349.1,4347.7,0.54188]
[1760020078284,0.0999,4348.9,4347.7,0.54188]
[1760020078450,0.0999,4348.9,4347.3,1.921]
[1760020078451,0.6336,4348.8,4347.3,1.921]
[1760020078653,0.0999,4348.9,4347.3,1.921]
[1760020078654,2.29970714,4348.4,4347.3,1.921]
[1760020078856,2.29970714,4348.4,4347.6,2.3001087]
[1760020079304,2.29965585,4348.5,4347.7,2.30006055]
[1760020079449,0.6336,4348.8,4347.8,0.02300013]
[1760020079784,0.80902713,4349.0,4347.9,2.29991444]
[1760020080088,2.29957144,4348.7,4347.8,2.32297431]
[1760020080263,0.6336,4348.9,4347.8,0.02300013]
[1760020080586,0.6336,4348.9,4347.3,0.001]
[1760020080587,0.1144,4347.9,4347.3,0.001]
[1760020080751,0.6336,4348.3,4347.3,0.001]
[1760020080956,6.771,4348.4,4347.3,0.001]
[1760020080957,0.1144,4347.7,4347.3,0.001]
[1760020081284,2.29997062,4347.9,4347.3,0.001]
[1760020081450,6.8709,4348.4,4347.3,0.001]
[1760020081451,0.1144,4347.5,4347.3,0.001]
[1760020082684,0.1144,4347.7,4347.3,0.001]
[1760020082870,0.1144,4347.7,4347.3,2.73142772]
[1760020083081,0.1144,4347.7,4347.4,2.32322656]
[1760020083272,0.1144,4347.7,4347.4,2.75342656]
[1760020083587,0.1144,4347.7,4347.4,0.02300225]
[1760020083767,0.1144,4347.7,4347.4,2.32322049]
[1760020083966,0.1144,4347.7,4347.4,0.45320225]
[1760020084474,0.1144,4347.7,4347.3,0.001]
[1760020084994,0.1144,4347.7,4347.3,2.30126446]
[1760020085201,0.1144,4347.7,4347.4,0.02300225]
[1760020085362,0.1144,4347.7,4347.4,2.32321951]
[1760020085700,0.1144,4347.7,4347.4,0.02300225]
[1760020085997,0.1144,4347.7,4347.3,0.001]
[1760020086161,0.1002,4347.6,4347.3,0.001]
[1760020086477,4.85382542,4347.4,4347.3,0.001]
[1760020086656,5.57924521,4347.4,4347.3,0.001]
[1760020086859,5.67944521,4347.4,4347.3,0.001]
[1760020087059,14.84144521,4347.4,4347.3,0.001]
[1760020087259,5.67944521,4347.4,4347.3,0.001]
[1760020087477,0.6336,4347.4,4347.3,0.001]
[1760020087683,7.4046,4347.4,4347.3,0.001]
[1760020088302,11.32000202,4348.9,4347.3,0.001]
[1760020088480,2.29982748,4348.2,4347.3,0.4312]
[1760020088684,3.032,4348.5,4347.5,2.30016403]
[1760020088881,0.55826,4348.4,4347.6,2.3001075]
[1760020089106,2.29975859,4348.3,4347.5,2.30015964]
[1760020089307,2.29980221,4348.2,4347.3,0.001]
[1760020089516,0.6336,4348.3,4347.3,0.001]
[1760020089677,2.30007219,4347.7,4347.3,0.001]
[1760020089876,2.30004256,4347.8,4347.3,0.001]
[1760020090117,2.30008749,4347.7,4347.3,0.001]
[1760020090275,0.33020875,4347.7,4347.3,0.001]
[1760020090470,2.30016312,4347.6,4347.3,0.001]
[1760020091210,0.6336,4348.2,4347.3,0.001]
[1760020091430,0.55826,4348.4,4347.3,0.4312]
[1760020091627,2.29991788,4348.0,4347.3,2.73147585]
[1760020091801,2.29996317,4347.9,4347.3,0.001]
[1760020092125,0.6336,4348.4,4347.3,0.001]
[1760020092295,2.0202,4348.5,4347.3,0.001]
[1760020092618,0.6336,4348.2,4347.3,0.001]
[1760020092814,2.29992163,4348.0,4347.3,0.001]
[1760020093017,2.65659943,4348.1,4347.3,0.001]
[1760020093221,2.2999507,4348.0,4347.3,0.001]
[1760020093516,2.29995749,4348.0,4347.3,0.001]
[1760020093829,0.35589609,4348.1,4347.3,0.001]
[1760020094122,2.29996201,4347.9,4347.3,0.001]
[1760020094382,2.29991904,4348.0,4347.3,0.001]
[1760020094511,0.1002,4349.2,4347.8,2.29998179]
[1760020094817,0.1002,4349.2,4347.5,2.30014785]
[1760020094818,2.29978567,4348.3,4347.5,2.30013121]
[1760020095025,2.29964144,4348.6,4347.4,0.4302]
[1760020095201,2.29978734,4348.3,4347.5,2.30017251]
[1760020095395,2.29978734,4348.3,4347.4,0.4302]
[1760020095591,2.59291787,4348.6,4347.5,0.02300172]
[1760020095592,0.29332414,4348.6,4347.5,0.02300172]
[1760020095820,2.29963547,4348.6,4347.8,2.30000595]
[1760020096022,2.2995389,4348.7,4347.7,2.30006049]
[1760020096234,2.2999694,4347.9,4347.4,0.4302]
[1760020096542,0.1144,4347.7,4347.3,0.001]
[1760020097457,0.1144,4347.7,4347.4,2.30018916]
[1760020098164,0.1144,4347.7,4347.3,0.001]
[1760020098818,0.1144,4347.7,4347.4,2.30022542]
[1760020099022,0.1144,4347.7,4347.4,2.3001945]
[1760020099264,0.1144,4347.7,4347.3,0.001]
[1760020099769,0.002,4349.3,4348.7,2.29953779]
[1760020100238,0.002,4349.3,4348.7,2.72973779]
[1760020100624,0.002,4349.3,4348.7,2.75273316]
[1760020100852,0.002,4349.3,4349.2,2.29927342]
[1760020101058,0.002,4349.3,4348.8,0.4302]
[1760020101242,0.002,4349.3,4349.2,2.29927342]
[1760020101442,0.002,4349.3,4349.2,6.768]
[1760020101645,0.002,4349.3,4347.3,3.27181305]
[1760020101876,0.002,4349.3,4348.7,2.29950474]
[1760020102141,0.002,4349.3,4347.4,2.3502]
[1760020102345,0.002,4349.3,4347.3,0.001]
[1760020102346,2.29975558,4348.3,4347.3,0.001]
[1760020102598,2.29975969,4348.3,4347.3,0.001]
[1760020102866,2.29991108,4348.0,4347.3,0.001]
[1760020103155,0.6336,4349.0,4347.4,0.4302]
[1760020103361,0.6336,4348.7,4347.4,2.73037637]
[1760020103557,2.29990325,4348.1,4347.3,9.06723096]
[1760020103965,0.099,4348.5,4347.3,9.06723096]
[1760020103966,0.6336,4348.4,4347.6,2.3000724]
[1760020104125,2.93334228,4348.4,4347.6,2.3000724]
[1760020104331,0.6336,4348.4,4347.7,2.30004523]
[1760020104539,0.6336,4348.9,4347.8,2.3000138]
[1760020104743,0.6336,4348.9,4347.3,0.001]
[1760020104744,0.6336,4348.7,4347.3,0.001]
[1760020104925,0.099,4348.8,4347.3,0.001]
[1760020104926,2.29984231,4348.2,4347.3,0.001]
[1760020105128,2.29986333,4348.1,4347.3,0.001]
[1760020105541,2.29988549,4348.1,4347.3,0.001]
[1760020105870,2.93334932,4348.3,4347.4,2.30017679]
[1760020106050,2.29983084,4348.2,4347.4,2.30017679]
[1760020106664,5.117,4348.7,4347.3,0.001]
[1760020106665,0.44812171,4348.9,4347.8,2.29996241]
[1760020106964,0.002,4349.3,4347.8,2.29996241]
[1760020106965,2.29963917,4348.6,4347.8,2.30000165]
[1760020107163,2.29968324,4348.5,4347.7,2.30005196]
[1760020107466,0.2619,4349.1,4347.7,2.30005196]
[1760020107467,2.46223715,4349.1,4348.1,2.29980458]
[1760020107666,0.2612,4349.6,4348.0,2.7690008]
[1760020107862,0.4155,4349.2,4348.1,0.02299855]
[1760020108049,0.4155,4349.2,4348.5,2.29962816]
[1760020108251,0.1622,4349.6,4348.4,0.4691]
[1760020108453,0.1622,4349.6,4348.5,2.29963467]
[1760020108626,2.3012266,4349.3,4348.6,2.2995757]
[1760020108826,2.3012266,4349.3,4348.4,0.02299696]
[1760020108827,0.002,4349.3,4348.5,0.4691]
[1760020109163,0.002,4349.3,4348.8,2.29944126]
[1760020109462,0.002,4349.3,4348.8,0.02299484]
[1760020109666,0.002,4349.3,4348.9,0.4691]
[1760020109667,0.1144,4349.2,4348.9,0.4691]
[1760020109901,0.002,4349.3,4349.0,0.4691]
[1760020110046,0.002,4349.3,4348.8,6.764]
[1760020110359,0.1144,4348.9,4348.4,6.764]
[1760020110529,0.1144,4348.9,4348.5,0.49209643]
[1760020110733,0.1144,4348.9,4348.6,0.4691]
[1760020110978,0.1164,4349.3,4349.1,2.29927517]
[1760020111139,0.1164,4349.3,4348.7,0.02299537]
[1760020111469,0.1164,4349.3,4348.6,0.1144]
[1760020111645,0.1164,4349.3,4348.6,6.763]
[1760020111646,0.1144,4348.9,4348.6,6.763]
[1760020111842,0.002,4349.3,4348.6,6.763]
[1760020111843,0.002,4349.3,4348.7,4.21953779]
[1760020112045,1.09582089,4353.5,4349.2,2.29927342]
[1760020112046,0.102,4352.5,4349.2,2.29927342]
[1760020112272,0.102,4352.5,4348.8,2.32247975]
[1760020112273,0.1021,4352.4,4349.4,1.92]
[1760020112477,2.41261212,4351.8,4350.1,0.2192]
[1760020112770,2.4005272,4351.2,4350.1,7.15479772]
[1760020112933,0.1023,4351.2,4350.1,7.15479772]
[1760020113132,2.29834079,4351.0,4350.1,5.3251]
[1760020113350,0.1023,4351.6,4350.1,5.3251]
[1760020113583,0.6336,4351.3,4350.1,2.76789772]
[1760020113742,0.1147,4351.8,4350.1,12.49831569]
[1760020113945,2.29780426,4352.0,4350.1,14.39532772]
[1760020114166,0.1023,4352.3,4350.1,14.39532772]
[1760020114567,0.6336,4352.2,4350.1,14.39532772]
[1760020114768,2.392,4353.0,4350.1,14.39532772]
[1760020114970,2.29752103,4352.6,4350.1,14.39532772]
[1760020115272,0.1024,4353.3,4350.1,5.24232772]
[1760020115446,0.6336,4352.3,4350.1,5.24232772]
[1760020115653,0.6336,4352.3,4350.1,14.39432772]
[1760020115853,2.29780038,4352.0,4350.1,14.39432772]
[1760020116183,2.29780038,4352.0,4350.1,5.24232772]
[1760020116339,2.29780038,4352.0,4350.1,14.39432772]
[1760020116675,0.0012,4350.2,4350.1,14.39432772]
[1760020117852,0.0012,4350.2,4350.1,5.24232772]
[1760020118050,0.0012,4350.2,4350.1,14.39332772]
[1760020119377,0.0012,4350.2,4350.1,12.00032772]
[1760020119572,0.0012,4350.2,4350.1,14.39132772]
[1760020119871,0.0012,4350.2,4350.1,12.00032772]
[1760020120040,0.0012,4350.2,4350.1,14.39132772]
[1760020120543,0.0012,4350.2,4350.1,5.24232772]
[1760020120743,0.0012,4350.2,4350.1,14.39032772]
[1760020121578,0.0012,4350.2,4350.1,5.24232772]
[1760020121744,0.0012,4350.2,4350.1,4.68789772]
[1760020121945,0.0012,4350.2,4350.1,12.03029772]
[1760020122145,0.0012,4350.2,4350.1,0.1144]
[1760020122346,0.0012,4350.2,4350.1,9.148]
[1760020122576,0.0012,4350.2,4350.1,11.44679772]
[1760020122956,0.0012,4350.2,4349.9,0.1144]
[1760020123287,0.0012,4350.2,4350.0,0.978]
[1760020123468,0.0012,4350.2,4350.1,0.979]
[1760020123643,0.0012,4350.2,4350.1,6.756]
[1760020124041,2.2988463,4350.1,4349.0,0.4691]
[1760020124344,2.29994516,4350.2,4349.4,2.29912727]
[1760020124680,2.29994516,4350.2,4349.0,2.76843136]
[1760020124891,2.29994516,4350.2,4349.4,2.29916767]
[1760020125388,2.29994516,4350.2,4348.6,4.22054924]
[1760020125389,1.09465948,4350.2,4348.6,0.001]
[1760020125674,2.29901295,4349.7,4348.7,0.017]
[1760020125885,2.29901581,4349.7,4348.7,0.017]
[1760020126184,2.29901581,4349.7,4348.6,2.392]
[1760020126185,0.6336,4349.7,4348.6,0.001]
[1760020126351,2.5548,4350.2,4348.6,0.001]
[1760020126352,2.29931382,4349.2,4348.6,0.001]
[1760020126547,0.6336,4349.5,4348.6,0.001]
[1760020126773,0.74790093,4349.5,4348.7,0.249]
[1760020127079,2.29942229,4349.0,4348.6,0.001]
[1760020127276,0.6336,4349.3,4348.6,0.001]
[1760020127489,2.29952741,4348.8,4348.6,0.001]
[1760020127779,2.29953779,4348.7,4348.6,0.001]
[1760020128076,3.03213779,4348.7,4348.6,0.001]
[1760020128285,3.33535157,4348.7,4348.6,0.001]
[1760020129093,0.93681378,4348.7,4348.6,0.001]
[1760020129288,3.33535157,4348.7,4348.6,0.001]
[1760020132588,2.29922056,4349.3,4348.6,0.001]
[1760020132891,2.29950567,4348.8,4348.6,0.001]
[1760020133092,0.6336,4348.9,4348.6,0.001]
[1760020133389,2.39853779,4348.7,4348.6,0.001]
[1760020133755,2.29953779,4348.7,4348.6,0.001]
[1760020134371,0.6336,4348.9,4348.6,0.001]
[1760020134573,0.099,4348.7,4348.6,0.001]
[1760020134771,2.29952634,4348.8,4348.6,0.001]
[1760020134985,0.6336,4348.9,4348.6,0.001]
[1760020135288,0.6336,4348.7,4348.6,0.001]
[1760020135585,3.03213779,4348.7,4348.6,0.001]
[1760020135795,0.7326,4348.7,4348.6,0.001]
[1760020136095,1.92,4349.3,4348.6,0.001]
[1760020136096,0.6336,4349.0,4348.6,0.001]
[1760020136398,2.29915658,4349.5,4348.7,8.16]
[1760020136572,2.29917691,4349.4,4348.7,8.16]
[1760020136782,0.1144,4348.9,4348.7,8.16]
[1760020137165,0.1144,4348.9,4348.8,2.29948491]
[1760020137359,0.1144,4348.9,4348.8,2.77787975]
[1760020137596,0.16,4349.9,4348.8,2.77787975]
[1760020137897,0.0012,4350.2,4348.9,9.143]
[1760020138100,2.29896114,4349.8,4349.0,9.143]
[1760020138294,2.29896114,4349.8,4349.1,2.29930789]
[1760020138665,2.29891298,4349.9,4349.2,11.44224637]
[1760020138913,2.29995872,4350.2,4349.2,11.44227081]
[1760020139065,0.0012,4350.2,4349.3,9.1659922]
[1760020139269,0.0012,4350.2,4349.3,9.143]
[1760020139498,0.0012,4350.2,4349.4,0.02299167]
[1760020139711,0.0004,4350.2,4349.9,2.29885197]
[1760020139872,0.0004,4350.2,4350.0,6.751]
[1760020140304,0.0004,4350.2,4350.1,2.8531]
[1760020140477,0.0004,4350.2,4350.1,5.37509772]
[1760020140798,0.0004,4350.2,4350.1,9.142]
[1760020141003,0.0004,4350.2,4349.5,0.4621]
[1760020141207,2.29889121,4350.0,4348.3,2.29974518]
[1760020141366,2.29889121,4350.0,4348.1,0.2302]
[1760020141367,0.6336,4350.0,4348.6,0.69317452]
[1760020141681,2.29910665,4349.6,4348.7,3.18]
[1760020141875,2.29910665,4349.6,4348.6,0.001]
[1760020141876,0.1588,4349.9,4348.8,8.088]
[1760020142091,2.29906512,4349.6,4348.8,8.088]
[1760020142291,0.1588,4349.9,4348.8,8.088]
[1760020142292,0.1588,4349.9,4349.0,2.29937476]
[1760020142499,0.1588,4349.9,4348.8,8.088]
[1760020142670,2.29896834,4349.8,4349.0,2.2993742]
[1760020142866,2.29902487,4349.7,4348.9,2.29940528]
[1760020143095,2.29895603,4349.9,4349.1,2.29932538]
[1760020143305,0.0004,4350.2,4349.0,9.16399379]
[1760020143471,0.0004,4350.2,4349.1,2.76142319]
[1760020143672,2.29890799,4349.9,4349.0,9.141]
[1760020143983,2.29885579,4350.0,4349.2,2.29925187]
[1760020144199,2.29885579,4350.0,4349.3,2.29920665]
[1760020144911,2.29885579,4350.0,4349.0,12.35445469]